fUSD/lending_fUSD_20240712
["ID","MTS","AMOUNT","RATE_DAILY","PERIOD"]
[331835298,1720785032222,-500.0,0.0001226,2]
[331835299,1720785032231,-379.2612396,0.00012273,2]
[331835300,1720785032240,-358.78684232,0.00012314,2]
[331835301,1720785032249,-411.33472839,0.00012436,2]
[331835302,1720785032261,-3743.01527161,0.00012436,2]
[331835303,1720785032270,-195.91,0.00012443,2]
[331835304,1720785032281,-250.0,0.00012449,2]
[331835305,1720785032290,-1000.0,0.00012467,2]
[331835307,1720785032299,-250.0,0.00012473,2]
[331835308,1720785032309,-168.78,0.00012751,2]
[331835309,1720785032318,-258.89,0.00012751,2]
[331835310,1720785032327,-499.99,0.00012787,2]
[331835311,1720785032336,-325.45,0.00012789,2]
[331835312,1720785032345,-24584.51850693,0.00013097,2]
[331835313,1720785032357,-627.85298596,0.00013097,2]
[331835315,1720785032409,-1440.43885638,0.00013097,2]
[331835331,1720785038062,-8324.06965073,0.00013097,2]
[331835332,1720785038075,-200.0,0.000133,4]
[331835333,1720785038084,-602.1066,0.0001336,2]
[331835334,1720785038094,-602.1066,0.0001339,2]
[331835335,1720785038104,-500.0,0.00013392,2]
[331835336,1720785038115,-500.0,0.000134,4]
[331835337,1720785038126,-602.1066,0.0001342,2]
[331835338,1720785038136,-19768.10437268,0.000135,2]
[331835339,1720785038267,-346.25272,0.000135,2]
[331835340,1720785038329,-285.4,0.000135,2]
[331835341,1720785038501,-849.6211464,0.000135,2]
[331835342,1720785038527,-1451.25340353,0.000135,2]
[331835364,1720785040121,-2008.32,0.000135,2]
[331835365,1720785040203,-724.90657299,0.000135,2]
[331835366,1720785040217,-11483.10568898,0.000135,2]
[331835387,1720785040866,-1888.88277762,0.000135,2]
[331835539,1720785043142,-2273.21168501,0.000135,2]
[331835540,1720785043196,-3208.17528165,0.000135,2]
[331835541,1720785043251,-570.0,0.000135,2]
[331835550,1720785044609,-307.86,0.000135,2]
[331835551,1720785044621,-288.8793262,0.000135,2]
[331835622,1720785046826,-899.14507577,0.00012757,2]
[331835624,1720785046836,-991.82049432,0.000135,2]
[331835625,1720785046873,-261.90548426,0.000135,2]
[331835626,1720785114303,11002.23600076,0.00011199,2]
[331835627,1720785120473,28042.73894807,0.00011199,2]
[331835628,1720785197240,1221.25721979,0.00011199,2]
[331835629,1720785267149,227.32181018,0.00011199,2]
[331835630,1720785337568,751.44225849,0.00011199,2]
[331835631,1720785351261,918.51883467,0.00011199,2]
[331835632,1720785351287,302.73838512,0.00011199,2]
[331835633,1720785389968,155.0,0.00011199,2]
[331835634,1720785441207,5414.93463371,0.00011199,2]
[331835635,1720785474090,28045.95670161,0.00011199,2]
[331835636,1720785476242,1221.49067848,0.00011199,2]
[331835637,1720785538685,783.99,0.00010959,2]
[331835638,1720785542492,15430.31346419,0.00011199,2]
[331835639,1720785547879,3052.61400844,0.00011199,2]
[331835640,1720785547903,32564.79985222,0.00011199,2]
[331835641,1720785549726,2990.49994312,0.00011199,2]
[331835642,1720785549746,1383.0,0.00011199,2]
[331835643,1720785549770,11943.04374971,0.00011199,2]
[331835644,1720785549819,246.93364268,0.00011199,2]
[331835645,1720785554443,354.28,0.00010525,2]
[331835646,1720785586237,150.0,0.00011199,2]
[331835647,1720785586260,150.0,0.00011199,2]
[331835648,1720785586281,150.0,0.00011199,2]
[331835649,1720785586304,150.0,0.00011199,2]
[331835650,1720785586325,150.0,0.00011199,2]
[331835651,1720785586346,150.0,0.00011199,2]
[331835652,1720785586366,150.0,0.00011199,2]
[331835653,1720785586387,150.0,0.00011199,2]
[331835654,1720785586407,21.49067848,0.00011199,2]
[331835655,1720785609706,150.0,0.00011199,2]
[331835656,1720785609726,67.90540753,0.00011199,2]
[331835657,1720785617058,150.91925033,0.00011143,2]
[331835658,1720785623722,150.0,0.00011199,2]
[331835659,1720785623742,5.0,0.00011199,2]
[331835660,1720785624389,661.47545687,0.00011199,2]
[331835661,1720785624433,158.65942631,0.00011199,2]
[331835662,1720785631032,150.0,0.00011199,2]
[331835663,1720785631055,50.50684621,0.00011199,2]
[331835664,1720785648310,150.0,0.00011199,2]
[331835665,1720785648329,150.0,0.00011199,2]
[331835666,1720785648350,150.0,0.00011199,2]
[331835667,1720785648370,197.908844,0.00011199,2]
[331835668,1720785648393,571.12882875,0.00011199,2]
[331835669,1720785649557,18205.83908875,0.00011199,2]
[331835670,1720785667268,150.0,0.00011199,2]
[331835671,1720785667291,150.0,0.00011199,2]
[331835672,1720785667310,150.0,0.00011199,2]
[331835673,1720785667331,150.0,0.00011199,2]
[331835674,1720785667350,150.0,0.00011199,2]
[331835675,1720785667372,150.0,0.00011199,2]
[331835676,1720785667396,321.49067848,0.00011199,2]
[331835677,1720785684999,348.90717992,0.00011199,2]
[331835678,1720785708439,300.0,0.00011199,2]
[331835679,1720785709794,158.59790843,0.00011199,2]
[331835680,1720785748264,1221.49067848,0.00011199,2]
[331835681,1720785748679,227.32181018,0.00011199,2]
[331835682,1720785757450,279.3637101,0.00011199,2]
[331835683,1720785763697,227.32181018,0.00011199,2]
[331835684,1720785795072,150.0,0.00011199,2]
[331835685,1720785795094,220.4,0.00011199,2]
[331835686,1720785795117,160.22911332,0.00011199,2]
[331835687,1720785803979,348.63433278,0.00011199,2]
[331835688,1720785818909,1014.32314146,0.00011199,2]
[331835689,1720785820055,475.9304479,0.00011199,2]
[331835690,1720785841277,150.0,0.00011199,2]
[331835691,1720785841298,150.0,0.00011199,2]
[331835692,1720785841318,150.0,0.00011199,2]
[331835693,1720785841342,150.0,0.00011199,2]
[331835694,1720785841362,150.0,0.00011199,2]
[331835695,1720785841384,214.96291139,0.00011199,2]
[331835696,1720785841407,256.52776709,0.00011199,2]
[331835697,1720785849057,150.0,0.00011199,2]
[331835698,1720785849080,2129.65018256,0.00011199,2]
[331835699,1720785862099,518.93934135,0.00011199,2]
[331835700,1720785864002,172.8628846,0.00011199,2]
[331835701,1720785869024,171.04080637,0.00011199,2]
[331835702,1720785902254,191.29156922,0.00011199,2]
[331835703,1720785918588,964.96291139,0.00011199,2]
[331835704,1720785924728,9290.77512485,0.00011199,2]
[331835705,1720785930283,1221.49067848,0.00011199,2]
[331835706,1720785935745,310.0,0.00011199,2]
[331835707,1720785936252,155.49289596,0.00011199,2]
[331835708,1720785940982,717.65350727,0.00011199,2]
[331835709,1720785948865,194.482196,0.00011199,2]
[331835710,1720785952240,535.85588556,0.00011199,2]
[331835711,1720785955730,202.86424835,0.00011199,2]
[331835712,1720785960700,155.0,0.00011199,2]
[331835713,1720785960995,155.66296535,0.00011199,2]
[331835714,1720785965457,158.14885175,0.00011199,2]
[331835715,1720785970348,308.45407443,0.00011199,2]
[331835716,1720786006003,264.7511771,0.00011199,2]
[331835717,1720786010283,334.35078614,0.00011199,2]
[331835718,1720786011588,475.52856478,0.00011199,2]
[331835719,1720786040329,1221.49067848,0.00011199,2]
[331835720,1720786050867,205.77904189,0.00011199,2]
[331836280,1720786075769,297.2123331,0.00011199,2]
[331836281,1720786091401,2379.74333492,0.00011199,2]
[331836282,1720786126788,1907.33688277,0.00011199,2]
[331836283,1720786140602,202.53110068,0.00011199,3]
[331836284,1720786147849,205.42331799,0.00011199,2]
[331836285,1720786150520,227.90224621,0.00011199,2]
[331836286,1720786169506,1091.549943,0.00011199,2]
[331836287,1720786186088,377.25,0.00010341,2]
[331836288,1720786192044,369.40444956,0.00011199,2]
[331836289,1720786200467,346.826932,0.00011199,2]
[331836293,1720786232313,-800.0,0.00012205,2]
[331836294,1720786232324,-250.0,0.00012253,2]
[331836295,1720786232333,-40.69070573,0.0001226,2]
[331836296,1720786232367,-249.36904235,0.0001226,2]
[331836297,1720786232376,-500.0,0.0001226,2]
[331836298,1720786232386,-207.12,0.00012267,2]
[331836299,1720786232395,-184.45501845,0.00012273,2]
[331836300,1720786232404,-1200.0,0.00012302,2]
[331836301,1720786232413,-250.0,0.00012314,2]
[331836302,1720786232423,-1847.41,0.00012356,2]
[331836303,1720786232432,-200.0,0.00012478,2]
[331836304,1720786232442,-192.88,0.00012517,2]
[331836305,1720786232453,-168.65,0.00012589,2]
[331836306,1720786232467,-499.99,0.00012589,2]
[331836307,1720786232476,-377.25,0.00012605,2]
[331836308,1720786232485,-609.79843374,0.00012664,2]
[331836309,1720786232495,-245.0,0.00012787,2]
[331836310,1720786232506,-150.0,0.00012852,2]
[331836311,1720786232516,-150.0,0.00012852,2]
[331836312,1720786232525,-300.0,0.00012895,2]
[331836313,1720786232534,-30377.0,0.00012896,2]
[331836314,1720786232546,-600.0,0.00013192,2]
[331836316,1720786232555,-500.0,0.000133,4]
[331836317,1720786232564,-1000.0,0.00013307,2]
[331836319,1720786232573,-2500.0,0.00013307,2]
[331836321,1720786232583,-223.7024,0.00013325,2]
[331836323,1720786232592,-153.74449,0.0001336,2]
[331836325,1720786232601,-153.74449,0.0001336,2]
[331836326,1720786232610,-33250.0999,0.000134,2]
[331836327,1720786232620,-4601.47989869,0.000134,2]
[331836328,1720786232665,-508.47198714,0.000134,2]
[331836329,1720786232755,-5671.1,0.000134,2]
[331836330,1720786232766,-563.22521417,0.000134,2]
[331836331,1720786232775,-4586.87638129,0.000134,2]
[331836332,1720786232787,-673.43302,0.000134,2]
[331836333,1720786232799,-3074.36299871,0.000134,2]
[331836334,1720786232808,-2622.9738,0.000134,2]
[331836335,1720786232818,-2721.81074991,0.000134,2]
[331836336,1720786232829,-471.75317277,0.000134,2]
[331836337,1720786232858,-4740.21195135,0.000134,2]
[331836338,1720786232870,-3772.22943122,0.000134,2]
[331836339,1720786232882,-667.36237526,0.000134,2]
[331836340,1720786232907,-1910.04659137,0.000134,2]
[331836341,1720786232918,-2115.17072812,0.000134,2]
[331836342,1720786232928,-1000.0,0.000134,4]
[331836343,1720786232937,-3089.47230588,0.00013407,2]
[331836352,1720786238816,-9695.6244994,0.00013407,2]
[331836357,1720786238855,-20992.46196507,0.00013407,2]
[331836359,1720786238870,-2971.24,0.00013407,2]
[331836389,1720786240248,-2264.48904993,0.00013407,2]
[331836390,1720786240308,-628.62956755,0.00013407,2]
[331836391,1720786240321,-892.19844599,0.00013407,2]
[331836392,1720786240334,-15718.31365012,0.00013407,2]
[331836393,1720786240347,-30294.20251606,0.00013407,2]
[331836394,1720786240359,-171.29269953,0.00013461,2]
[331836395,1720786240368,-5640.3965069,0.00013498,2]
[331836396,1720786240377,-2214.0803243,0.00013498,2]
[331836397,1720786240387,-109867.6590396,0.000135,2]
[331836398,1720786240398,-155.0,0.000135,2]
[331836399,1720786240416,-2000.0,0.000135,2]
[331836400,1720786240431,-200.0,0.000135,2]
[331836401,1720786240448,-1500.0,0.000135,4]
[331836402,1720786240467,-225.0,0.000135,2]
[331836403,1720786240485,-813.1298,0.000135,2]
[331836404,1720786240502,-602.1066,0.000135,2]
[331836405,1720786240519,-602.1066,0.000135,2]
[331836406,1720786240534,-153.74448,0.000135,2]
[331836407,1720786240554,-153.74449,0.000135,2]
[331836408,1720786240572,-153.74449,0.000135,2]
[331836409,1720786240589,-356.0,0.000135,2]
[331836410,1720786240600,-1405.6912,0.000135,2]
[331836411,1720786240616,-2000.0,0.000135,2]
[331836412,1720786240631,-200.0,0.000135,2]
[331836413,1720786240648,-1000.0,0.000135,2]
[331836414,1720786240661,-3185.1735,0.000135,2]
[331836415,1720786240678,-49565.327098,0.00013507,2]
[331836416,1720786240694,-155.43704552,0.00013516,2]
[331836417,1720786240709,-297.2123331,0.00013516,2]
[331836419,1720786240725,-1830.0,0.00013561,2]
[331836421,1720786240740,-1659.0,0.00013561,2]
[331836422,1720786240754,-449.0,0.00013561,2]
[331836423,1720786240768,-398.051,0.00013561,2]
[331836424,1720786240782,-150.0,0.00013561,2]
[331836425,1720786240795,-619.0,0.00013561,2]
[331836426,1720786240809,-809.0,0.00013561,2]
[331836427,1720786240824,-414.741,0.00013561,2]
[331836428,1720786240837,-541.922,0.00013561,2]
[331836429,1720786240852,-5183.0,0.00013561,2]
[331836430,1720786240867,-2721.58813666,0.00013561,2]
[331836431,1720786240884,-1787.78223404,0.00013561,2]
[331836449,1720786243347,-435.45798139,0.00013561,2]
[331836450,1720786243358,-439.49570609,0.00013561,2]
[331836451,1720786245251,-433.67594182,0.00013561,2]
[331836452,1720786245261,-41.99664859,0.00013561,2]
[331836453,1720786245272,-1158.00335141,0.00013561,2]
[331836454,1720786245281,-248.809,0.00013561,2]
[331836455,1720786245290,-38287.0,0.00013561,2]
[331836456,1720786245300,-1666.0,0.00013561,2]
[331836457,1720786245310,-1072.0,0.00013561,2]
[331836458,1720786245319,-270.18009728,0.00013574,2]
[331836459,1720786245328,-806.53671326,0.00013574,2]
[331836460,1720786245338,-1629.40233888,0.00013574,2]
[331836461,1720786245347,-2605.3,0.00013574,2]
[331836462,1720786245358,-1812.56054312,0.0001358,2]
[331836463,1720786245367,-316.78,0.00013589,3]
[331836464,1720786245377,-461.91758131,0.000136,2]
[331836465,1720786245386,-3271.13086808,0.000136,2]
[331836466,1720786245395,-2000.0,0.000136,4]
[331836467,1720786245404,-2000.0,0.00013635,2]
[331836468,1720786245413,-200.0,0.00013635,2]
[331836469,1720786245423,-2000.0,0.00013635,2]
[331836470,1720786245432,-200.0,0.00013635,2]
[331836471,1720786245442,-177.42557792,0.00013636,2]
[331836472,1720786245453,-205.7634122,0.00013688,2]
[331836473,1720786245464,-296.62,0.00013689,7]
[331836474,1720786245478,-12756.12280051,0.0001369,3]
[331836475,1720786245487,-173.44,0.00013692,2]
[331836476,1720786245497,-651.06492081,0.00013695,2]
[331836477,1720786245506,-500.0,0.00013698,2]
[331836478,1720786245518,-300.0,0.00013698,2]
[331836479,1720786245528,-500.0,0.00013698,2]
[331836480,1720786245538,-500.0,0.00013698,2]
[331836481,1720786245549,-1108.95,0.00013698,2]
[331836482,1720786245559,-500.0,0.00013698,2]
[331836483,1720786245569,-500.0,0.00013698,2]
[331836484,1720786245578,-500.0,0.00013698,2]
[331836485,1720786245588,-500.0,0.00013698,2]
[331836486,1720786245597,-500.0,0.00013698,2]
[331836487,1720786245606,-620.84,0.00013698,2]
[331836488,1720786245759,-500.0,0.00013698,2]
[331836489,1720786245768,-500.0,0.00013698,2]
[331836490,1720786245778,-500.0,0.00013698,2]
[331836491,1720786245787,-500.0,0.00013698,2]
[331836492,1720786245796,-500.0,0.00013698,2]
[331836493,1720786245806,-500.0,0.00013698,2]
[331836494,1720786245815,-500.0,0.00013698,2]
[331836495,1720786245825,-500.0,0.00013698,2]
[331836496,1720786245834,-500.0,0.00013698,2]
[331836497,1720786245843,-500.0,0.00013698,2]
[331836498,1720786245852,-728.85,0.00013698,2]
[331836499,1720786245861,-500.0,0.00013698,2]
[331836500,1720786245871,-500.0,0.00013698,2]
[331836501,1720786245880,-500.0,0.00013698,2]
[331836502,1720786245889,-718.14,0.00013698,2]
[331836503,1720786245899,-500.0,0.00013698,2]
[331836504,1720786245908,-500.0,0.00013698,2]
[331836505,1720786245918,-500.0,0.00013698,2]
[331836506,1720786245928,-500.0,0.00013698,2]
[331836507,1720786245937,-500.0,0.00013698,2]
[331836508,1720786245946,-500.0,0.00013698,2]
[331836509,1720786245958,-500.0,0.00013698,2]
[331836510,1720786245967,-500.0,0.00013698,2]
[331836511,1720786245976,-500.0,0.00013698,2]
[331836512,1720786245986,-500.0,0.00013698,2]
[331836513,1720786245995,-500.0,0.00013698,2]
[331836514,1720786246004,-528.38,0.00013698,2]
[331836515,1720786246014,-584.2,0.00013698,2]
[331836516,1720786246023,-500.0,0.00013698,2]
[331836518,1720786246033,-500.0,0.00013698,2]
[331836520,1720786246042,-500.0,0.00013698,2]
[331836521,1720786246056,-562.64,0.00013698,2]
[331836523,1720786246065,-500.0,0.00013698,2]
[331836524,1720786246076,-610.36,0.00013698,2]
[331836526,1720786246085,-500.0,0.00013698,2]
[331836528,1720786246095,-500.0,0.00013698,2]
[331836529,1720786246104,-500.0,0.00013698,2]
[331836531,1720786246113,-500.0,0.00013698,2]
[331836532,1720786246122,-184.23756877,0.00013698,2]
[331836533,1720786246131,-410.06895002,0.00013698,2]
[331836535,1720786246140,-500.0,0.00013698,2]
[331836536,1720786246149,-537.23,0.00013698,2]
[331836538,1720786246158,-500.0,0.00013698,2]
[331836540,1720786246167,-603.28,0.00013698,2]
[331836541,1720786246176,-617.13,0.00013698,2]
[331836542,1720786246185,-500.0,0.00013698,2]
[331836543,1720786246195,-500.0,0.00013698,2]
[331836544,1720786246203,-627.6,0.00013698,2]
[331836545,1720786246212,-535.4,0.00013698,2]
[331836546,1720786246222,-500.0,0.00013698,2]
[331836547,1720786246231,-500.0,0.00013698,2]
[331836548,1720786246240,-383.11909144,0.00013698,2]
[331836549,1720786246249,-526.41,0.00013698,2]
[331836550,1720786246258,-500.0,0.00013698,2]
[331836551,1720786246267,-500.0,0.00013698,2]
[331836552,1720786246276,-500.0,0.00013698,2]
[331836554,1720786246285,-500.0,0.00013698,2]
[331836555,1720786246294,-500.0,0.00013698,2]
[331836557,1720786246307,-500.0,0.00013698,2]
[331836558,1720786246316,-500.0,0.00013698,2]
[331836559,1720786246325,-500.0,0.00013698,2]
[331836560,1720786246334,-585.23,0.00013698,2]
[331836561,1720786246343,-500.0,0.00013698,2]
[331836562,1720786246352,-500.0,0.00013698,2]
[331836563,1720786246361,-500.0,0.00013698,2]
[331836564,1720786246370,-500.0,0.00013698,2]
[331836565,1720786246380,-500.0,0.00013698,2]
[331836566,1720786246389,-500.0,0.00013698,2]
[331836567,1720786246398,-500.0,0.00013698,2]
[331836568,1720786246407,-500.0,0.00013698,2]
[331836569,1720786246416,-571.29,0.00013698,2]
[331836570,1720786246426,-500.0,0.00013698,2]
[331836571,1720786246435,-500.0,0.00013698,2]
[331836572,1720786246444,-500.0,0.00013698,2]
[331836573,1720786246453,-567.61,0.00013698,2]
[331836574,1720786246464,-500.0,0.00013698,2]
[331836575,1720786246477,-500.0,0.00013698,2]
[331836576,1720786246486,-653.49,0.00013698,2]
[331836577,1720786246495,-500.0,0.00013698,2]
[331836578,1720786246504,-500.0,0.00013698,2]
[331836579,1720786246515,-500.0,0.00013698,2]
[331836580,1720786246524,-557.21,0.00013698,2]
[331836581,1720786246533,-883.42,0.00013698,2]
[331836582,1720786246542,-500.0,0.00013698,2]
[331836583,1720786246554,-588.62,0.00013698,2]
[331836584,1720786246563,-500.0,0.00013698,2]
[331836585,1720786246572,-500.0,0.00013698,2]
[331836586,1720786246581,-500.0,0.00013698,2]
[331836587,1720786246590,-819.56,0.00013698,2]
[331836588,1720786246599,-684.91,0.00013698,2]
[331836589,1720786246608,-500.0,0.00013698,2]
[331836590,1720786246617,-500.0,0.00013698,2]
[331836591,1720786246626,-500.0,0.00013698,2]
[331836592,1720786246637,-500.0,0.00013698,2]
[331836593,1720786246646,-500.0,0.00013698,2]
[331836594,1720786246655,-500.0,0.00013698,2]
[331836595,1720786246673,-514.92,0.00013698,2]
[331836596,1720786246690,-500.0,0.00013698,2]
[331836597,1720786246704,-289.70635056,0.00013698,2]
[331836598,1720786246720,-500.0,0.00013698,2]
[331836599,1720786246737,-500.0,0.00013698,2]
[331836600,1720786246756,-500.0,0.00013698,2]
[331836601,1720786246770,-632.25,0.00013698,2]
[331836602,1720786246787,-500.0,0.00013698,2]
[331836603,1720786246801,-500.0,0.00013698,2]
[331836604,1720786246815,-500.0,0.00013698,2]
[331836605,1720786246831,-500.0,0.00013698,2]
[331836606,1720786246846,-500.0,0.00013698,2]
[331836607,1720786246864,-500.0,0.00013698,2]
[331836608,1720786246877,-500.0,0.00013698,2]
[331836609,1720786246891,-500.0,0.00013698,2]
[331836610,1720786246908,-500.0,0.00013698,2]
[331836611,1720786246922,-500.0,0.00013698,2]
[331836612,1720786246939,-500.0,0.00013698,2]
[331836613,1720786246953,-639.38,0.00013698,2]
[331836614,1720786246966,-253.01870179,0.00013698,2]
[331836615,1720786246979,-500.0,0.00013698,2]
[331836616,1720786246997,-500.0,0.00013698,2]
[331836617,1720786247011,-251.47433411,0.00013698,2]
[331836618,1720786247024,-500.0,0.00013698,2]
[331836619,1720786247039,-500.0,0.00013698,2]
[331836620,1720786247052,-500.0,0.00013698,2]
[331836621,1720786247066,-546.45,0.00013698,2]
[331836622,1720786247080,-500.0,0.00013698,2]
[331836623,1720786247093,-500.0,0.00013698,2]
[331836624,1720786247107,-500.0,0.00013698,2]
[331836625,1720786247120,-512.76,0.00013698,2]
[331836626,1720786247133,-500.0,0.00013698,2]
[331836627,1720786247146,-500.0,0.00013698,2]
[331836628,1720786247160,-540.44,0.00013698,2]
[331836629,1720786247173,-500.0,0.00013698,2]
[331836630,1720786247186,-500.0,0.00013698,2]
[331836631,1720786247199,-500.0,0.00013698,2]
[331836632,1720786247212,-500.0,0.00013698,2]
[331836633,1720786247227,-500.0,0.00013698,2]
[331836634,1720786247241,-500.0,0.00013698,2]
[331836635,1720786247256,-500.0,0.00013698,2]
[331836636,1720786247269,-682.34,0.00013698,2]
[331836637,1720786247283,-500.0,0.00013698,2]
[331836638,1720786247297,-500.0,0.00013698,2]
[331836639,1720786247312,-500.0,0.00013698,2]
[331836640,1720786247325,-559.15,0.00013698,2]
[331836641,1720786247339,-500.0,0.00013698,2]
[331836642,1720786247352,-500.0,0.00013698,2]
[331836643,1720786247365,-500.0,0.00013698,2]
[331836644,1720786247379,-500.0,0.00013698,2]
[331836645,1720786247392,-500.0,0.00013698,2]
[331836646,1720786247406,-500.0,0.00013698,2]
[331836647,1720786247419,-500.0,0.00013698,2]
[331836648,1720786247433,-500.0,0.00013698,2]
[331836649,1720786247446,-520.71,0.00013698,2]
[331836650,1720786247463,-500.0,0.00013698,2]
[331836651,1720786247479,-500.0,0.00013698,2]
[331836652,1720786247493,-500.0,0.00013698,2]
[331836653,1720786247507,-500.0,0.00013698,2]
[331836654,1720786247521,-500.0,0.00013698,2]
[331836655,1720786247534,-500.0,0.00013698,2]
[331836656,1720786247550,-500.0,0.00013698,2]
[331836657,1720786247565,-500.0,0.00013698,2]
[331836658,1720786247578,-500.0,0.00013698,2]
[331836659,1720786247592,-150.0,0.00013698,2]
[331836660,1720786247605,-500.0,0.00013698,2]
[331836661,1720786247618,-500.0,0.00013698,2]
[331836662,1720786247632,-500.0,0.00013698,2]
[331836663,1720786247646,-509.77,0.00013698,2]
[331836664,1720786247660,-500.0,0.00013698,2]
[331836665,1720786247673,-500.0,0.00013698,2]
[331836666,1720786247687,-637.91,0.00013698,2]
[331836667,1720786247700,-915.46,0.00013698,2]
[331836668,1720786247715,-500.0,0.00013698,2]
[331836669,1720786247728,-500.0,0.00013698,2]
[331836670,1720786247743,-500.0,0.00013698,2]
[331836671,1720786247757,-500.0,0.00013698,2]
[331836672,1720786247770,-500.0,0.00013698,2]
[331836673,1720786247783,-542.16,0.00013698,2]
[331836674,1720786247797,-500.0,0.00013698,2]
[331836675,1720786247812,-500.0,0.00013698,2]
[331836676,1720786247826,-500.0,0.00013698,2]
[331836677,1720786247839,-629.58197947,0.00013698,2]
[331836678,1720786247853,-500.0,0.00013698,2]
[331836679,1720786247868,-556.81,0.00013698,2]
[331836680,1720786247881,-151.6308599,0.00013698,2]
[331836681,1720786247895,-500.0,0.00013698,2]
[331836682,1720786247909,-500.0,0.00013698,2]
[331836683,1720786247923,-500.0,0.00013698,2]
[331836684,1720786247937,-500.0,0.00013698,2]
[331836685,1720786247951,-500.0,0.00013698,2]
[331836686,1720786247965,-500.0,0.00013698,2]
[331836687,1720786247978,-500.0,0.00013698,2]
[331836688,1720786247992,-500.0,0.00013698,2]
[331836689,1720786248005,-500.0,0.00013698,2]
[331836690,1720786248018,-500.0,0.00013698,2]
[331836691,1720786248032,-500.0,0.00013698,2]
[331836692,1720786248226,-500.0,0.00013698,2]
[331836693,1720786248246,-630.45,0.00013698,2]
[331836694,1720786248256,-500.0,0.00013698,2]
[331836695,1720786248266,-500.0,0.00013698,2]
[331836696,1720786248277,-500.0,0.00013698,2]
[331836697,1720786248286,-500.0,0.00013698,2]
[331836698,1720786248297,-500.0,0.00013698,2]
[331836699,1720786248308,-500.0,0.00013698,2]
[331836700,1720786248318,-500.0,0.00013698,2]
[331836701,1720786248327,-500.0,0.00013698,2]
[331836702,1720786248338,-500.0,0.00013698,2]
[331836703,1720786248347,-686.31,0.00013698,2]
[331836704,1720786248357,-803.81,0.00013698,2]
[331836705,1720786248367,-500.0,0.00013698,2]
[331836706,1720786248377,-500.0,0.00013698,2]
[331836707,1720786248387,-500.0,0.00013698,2]
[331836708,1720786248396,-578.75,0.00013698,2]
[331836709,1720786248406,-500.0,0.00013698,2]
[331836710,1720786248415,-610.13,0.00013698,2]
[331836711,1720786248425,-838.38,0.00013698,2]
[331836712,1720786248435,-500.0,0.00013698,2]
[331836713,1720786248444,-505.7,0.00013698,2]
[331836714,1720786248454,-500.0,0.00013698,2]
[331836715,1720786248464,-1191.52,0.00013698,2]
[331836716,1720786248478,-513.3,0.00013698,2]
[331836717,1720786248488,-500.0,0.00013698,2]
[331836718,1720786248498,-500.0,0.00013698,2]
[331836719,1720786248509,-677.68,0.00013698,2]
[331836720,1720786248519,-726.82,0.00013698,2]
[331836721,1720786248529,-500.0,0.00013698,2]
[331836722,1720786248538,-851.2,0.00013698,2]
[331836723,1720786248548,-500.0,0.00013698,2]
[331836724,1720786248560,-500.0,0.00013698,2]